[Event "Titled Tuesday Blitz November 29 Early 2022"]
[White "Gurevich, Dmitry"]
[Black "Czopor, Maciej"]
[WhiteFideId "2000407"]
[BlackFideId "21805431"]
[WhiteElo "2506"]
[BlackElo "2324"]
[Result "0-1"]
[Round "06"]
[TimeControl "180+1"]
[Date "2022.11.30"]
[WhiteClock "0:00:01"]
[BlackClock "0:00:28"]

1. d4 {[%clk 0:03:00]}  Nf6 {[%clk 0:02:52]} 2. c4 {[%clk 0:03:00]}  g6 {[%clk 0:02:52]} 3. Nc3 {[%clk 0:02:59]}  Bg7 {[%clk 0:02:52]} 4. e4 {[%clk 0:02:59]}  O-O {[%clk 0:02:53]} 5. Nf3 {[%clk 0:03:00]}  d6 {[%clk 0:02:53]} 6. Be2 {[%clk 0:03:00]}  Nc6 {[%clk 0:02:53]} 7. d5 {[%clk 0:02:59]}  Nb8 {[%clk 0:02:49]} 8. O-O {[%clk 0:02:58]}  c6 {[%clk 0:02:48]} 9. Bf4 {[%clk 0:02:53]}  Na6 {[%clk 0:02:36]} 10. h3 {[%clk 0:02:42]}  Re8 {[%clk 0:02:33]} 11. Qc2 {[%clk 0:02:37]}  Bd7 {[%clk 0:02:33]} 12. Rad1 {[%clk 0:02:36]}  Rb8 {[%clk 0:02:33]} 13. dxc6 {[%clk 0:02:29]}  bxc6 {[%clk 0:02:29]} 14. c5 {[%clk 0:02:27]}  Nxc5 {[%clk 0:02:24]} 15. e5 {[%clk 0:02:20]}  Nh5 {[%clk 0:02:17]} 16. Bh2 {[%clk 0:02:14]}  Bf5 {[%clk 0:02:16]} 17. Qc1 {[%clk 0:02:10]}  Qb6 {[%clk 0:01:45]} 18. g4 {[%clk 0:02:03]}  Be6 {[%clk 0:01:45]} 19. Nd4 {[%clk 0:01:43]}  dxe5 {[%clk 0:01:39]} 20. Nxe6 {[%clk 0:01:40]}  Nxe6 {[%clk 0:01:40]} 21. gxh5 {[%clk 0:01:39]}  Qxb2 {[%clk 0:01:39]} 22. hxg6 {[%clk 0:01:10]}  hxg6 {[%clk 0:01:37]} 23. Bc4 {[%clk 0:00:59]}  Nd4 {[%clk 0:01:27]} 24. Qxb2 {[%clk 0:00:47]}  Rxb2 {[%clk 0:01:28]} 25. Rfe1 {[%clk 0:00:43]}  Nf3+ {[%clk 0:01:28]} 26. Kg2 {[%clk 0:00:40]}  Nxe1+ {[%clk 0:01:29]} 27. Rxe1 {[%clk 0:00:40]}  Rc2 {[%clk 0:01:29]} 28. Re3 {[%clk 0:00:32]}  e4 {[%clk 0:01:30]} 29. Bxf7+ {[%clk 0:00:27]}  Kxf7 {[%clk 0:01:29]} 30. Nxe4 {[%clk 0:00:28]}  Rxa2 {[%clk 0:01:24]} 31. Ng5+ {[%clk 0:00:27]}  Kg8 {[%clk 0:01:24]} 32. Ne6 {[%clk 0:00:26]}  Bf6 {[%clk 0:01:21]} 33. Nf4 {[%clk 0:00:25]}  Kf7 {[%clk 0:01:21]} 34. Nd3 {[%clk 0:00:25]}  a5 {[%clk 0:01:19]} 35. Ne5+ {[%clk 0:00:23]}  Bxe5 {[%clk 0:01:19]} 36. Bxe5 {[%clk 0:00:22]}  a4 {[%clk 0:01:18]} 37. Rc3 {[%clk 0:00:19]}  Ke6 {[%clk 0:01:14]} 38. Bf4 {[%clk 0:00:15]}  Kd5 {[%clk 0:01:14]} 39. Be3 {[%clk 0:00:15]}  e5 {[%clk 0:01:13]} 40. Kf3 {[%clk 0:00:14]}  a3 {[%clk 0:01:09]} 41. Rc5+ {[%clk 0:00:13]}  Kd6 {[%clk 0:01:09]} 42. Ra5 {[%clk 0:00:13]}  e4+ {[%clk 0:01:03]} 43. Kg4 {[%clk 0:00:11]}  Ke6 {[%clk 0:00:51]} 44. Kg5 {[%clk 0:00:09]}  Rd8 {[%clk 0:00:42]} 45. Kxg6 {[%clk 0:00:07]}  Ra1 {[%clk 0:00:42]} 46. Kg5 {[%clk 0:00:05]}  Rf8 {[%clk 0:00:31]} 47. Kh4 {[%clk 0:00:01]}  a2 {[%clk 0:00:29]} 48. Ra4 {[%clk 0:00:01]}  Rh8+ {[%clk 0:00:28]} 0-1


[Site "https://www.chess.com"]

[Event "Titled Tuesday Blitz November 29 Early 2022"]
[White "Han, Yichen"]
[Black "Ljukin, Sergei"]
[WhiteFideId "1054430"]
[BlackFideId "14102200"]
[WhiteElo "2323"]
[BlackElo "2312"]
[Result "0-1"]
[Round "06"]
[TimeControl "180+1"]
[Date "2022.11.30"]
[WhiteClock "0:01:20"]
[BlackClock "0:00:18"]

1. d4 {[%clk 0:03:00]}  d5 {[%clk 0:02:53]} 2. c4 {[%clk 0:03:01]}  c6 {[%clk 0:02:51]} 3. Nf3 {[%clk 0:02:59]}  Nf6 {[%clk 0:02:51]} 4. e3 {[%clk 0:03:00]}  e6 {[%clk 0:02:51]} 5. Bd3 {[%clk 0:02:59]}  dxc4 {[%clk 0:02:51]} 6. Bxc4 {[%clk 0:02:59]}  b5 {[%clk 0:02:51]} 7. Bd3 {[%clk 0:02:59]}  a6 {[%clk 0:02:50]} 8. O-O {[%clk 0:02:59]}  Bb7 {[%clk 0:02:49]} 9. a4 {[%clk 0:02:59]}  b4 {[%clk 0:02:46]} 10. Nbd2 {[%clk 0:03:00]}  c5 {[%clk 0:02:45]} 11. Qe2 {[%clk 0:02:48]}  Nc6 {[%clk 0:02:42]} 12. Nb3 {[%clk 0:02:44]}  cxd4 {[%clk 0:02:40]} 13. exd4 {[%clk 0:02:45]}  Be7 {[%clk 0:02:35]} 14. Bf4 {[%clk 0:02:40]}  O-O {[%clk 0:02:33]} 15. Rac1 {[%clk 0:02:37]}  Nd5 {[%clk 0:01:58]} 16. Bg3 {[%clk 0:02:34]}  Qb6 {[%clk 0:01:47]} 17. Nc5 {[%clk 0:02:21]}  Nxd4 {[%clk 0:01:40]} 18. Nxd4 {[%clk 0:02:18]}  Bxc5 {[%clk 0:01:40]} 19. a5 {[%clk 0:02:11]}  Qa7 {[%clk 0:01:36]} 20. Nb3 {[%clk 0:02:05]}  Be7 {[%clk 0:01:32]} 21. Qh5 {[%clk 0:02:00]}  g6 {[%clk 0:01:31]} 22. Qh6 {[%clk 0:01:59]}  Bf6 {[%clk 0:01:30]} 23. Nc5 {[%clk 0:01:55]}  Bxb2 {[%clk 0:01:19]} 24. Rc2 {[%clk 0:01:54]}  Bg7 {[%clk 0:01:17]} 25. Qh4 {[%clk 0:01:52]}  b3 {[%clk 0:01:13]} 26. Nxb3 {[%clk 0:01:52]}  Rac8 {[%clk 0:01:02]} 27. Rfc1 {[%clk 0:01:51]}  Bf6 {[%clk 0:00:59]} 28. Qh6 {[%clk 0:01:48]}  Rxc2 {[%clk 0:00:57]} 29. Rxc2 {[%clk 0:01:48]}  Nb4 {[%clk 0:00:54]} 30. Bd6 {[%clk 0:01:45]}  Bg7 {[%clk 0:00:48]} 31. Qd2 {[%clk 0:01:39]}  Nxc2 {[%clk 0:00:43]} 32. Bxf8 {[%clk 0:01:39]}  Bxf8 {[%clk 0:00:40]} 33. Qxc2 {[%clk 0:01:39]}  Bd5 {[%clk 0:00:37]} 34. Nd2 {[%clk 0:01:37]}  Qb7 {[%clk 0:00:34]} 35. Ne4 {[%clk 0:01:33]}  Be7 {[%clk 0:00:28]} 36. f3 {[%clk 0:01:29]}  Qb4 {[%clk 0:00:24]} 37. Qc8+ {[%clk 0:01:25]}  Kg7 {[%clk 0:00:24]} 38. Qc3+ {[%clk 0:01:24]}  Qxc3 {[%clk 0:00:23]} 39. Nxc3 {[%clk 0:01:25]}  Bb7 {[%clk 0:00:21]} 40. Na2 {[%clk 0:01:25]}  Kf6 {[%clk 0:00:20]} 41. Kf2 {[%clk 0:01:25]}  Ke5 {[%clk 0:00:20]} 42. Ke3 {[%clk 0:01:26]}  Bc5+ {[%clk 0:00:20]} 43. Ke2 {[%clk 0:01:26]}  Kd4 {[%clk 0:00:21]} 44. h4 {[%clk 0:01:25]}  h5 {[%clk 0:00:20]} 45. g4 {[%clk 0:01:23]}  Be7 {[%clk 0:00:20]} 46. g5 {[%clk 0:01:21]}  Kc5 {[%clk 0:00:20]} 47. Nc1 {[%clk 0:01:20]}  Bd8 {[%clk 0:00:19]} 48. Nb3+ {[%clk 0:01:21]}  Kb4 {[%clk 0:00:19]} 49. Nd4 {[%clk 0:01:20]}  Bxa5 {[%clk 0:00:18]} 50. f4 {[%clk 0:01:20]}  Bc7 {[%clk 0:00:17]} 51. Ke3 {[%clk 0:01:20]}  Bb6 {[%clk 0:00:18]} 52. Be2 {[%clk 0:01:20]}  Kc3 {[%clk 0:00:18]} 0-1


[Site "https://www.chess.com"]

[Event "Titled Tuesday Blitz November 29 Early 2022"]
[White "Havas, Ladislav"]
[Black "Atakhan, Abtin"]
[WhiteFideId "14501090"]
[BlackFideId "22502203"]
[WhiteElo "2199"]
[BlackElo "2298"]
[Result "1-0"]
[Round "06"]
[TimeControl "180+1"]
[Date "2022.11.30"]
[WhiteClock "0:01:28"]
[BlackClock "0:00:34"]

1. d4 {[%clk 0:03:00]}  Nf6 {[%clk 0:02:58]} 2. Bg5 {[%clk 0:03:00]}  Ne4 {[%clk 0:02:58]} 3. h4 {[%clk 0:03:00]}  c5 {[%clk 0:02:54]} 4. dxc5 {[%clk 0:03:00]}  Na6 {[%clk 0:02:52]} 5. c3 {[%clk 0:02:58]}  Naxc5 {[%clk 0:02:51]} 6. Nf3 {[%clk 0:02:56]}  Qb6 {[%clk 0:02:48]} 7. b4 {[%clk 0:02:35]}  Ne6 {[%clk 0:02:38]} 8. Be3 {[%clk 0:02:34]}  Qc7 {[%clk 0:02:38]} 9. Qd3 {[%clk 0:02:30]}  d5 {[%clk 0:02:25]} 10. g3 {[%clk 0:02:24]}  g6 {[%clk 0:02:21]} 11. Bg2 {[%clk 0:02:18]}  Bg7 {[%clk 0:02:17]} 12. Nd4 {[%clk 0:02:18]}  Nxd4 {[%clk 0:02:02]} 13. Bxd4 {[%clk 0:02:18]}  e5 {[%clk 0:01:56]} 14. Be3 {[%clk 0:02:17]}  Nf6 {[%clk 0:01:46]} 15. O-O {[%clk 0:02:15]}  Bf5 {[%clk 0:01:40]} 16. Qb5+ {[%clk 0:02:14]}  Bd7 {[%clk 0:01:40]} 17. Qc5 {[%clk 0:02:11]}  Qxc5 {[%clk 0:01:40]} 18. Bxc5 {[%clk 0:02:11]}  b6 {[%clk 0:01:40]} 19. Bd6 {[%clk 0:02:09]}  Ne4 {[%clk 0:01:39]} 20. Bxe4 {[%clk 0:02:09]}  dxe4 {[%clk 0:01:40]} 21. Nd2 {[%clk 0:02:08]}  Rc8 {[%clk 0:01:29]} 22. Nxe4 {[%clk 0:02:06]}  f5 {[%clk 0:01:24]} 23. Ng5 {[%clk 0:02:03]}  Rc6 {[%clk 0:01:19]} 24. Rad1 {[%clk 0:02:00]}  h6 {[%clk 0:01:09]} 25. Nf3 {[%clk 0:02:00]}  e4 {[%clk 0:01:10]} 26. Nd4 {[%clk 0:02:00]}  Rxd6 {[%clk 0:01:10]} 27. Nxf5 {[%clk 0:01:58]}  Rxd1 {[%clk 0:00:50]} 28. Nxg7+ {[%clk 0:01:58]}  Kf7 {[%clk 0:00:51]} 29. Rxd1 {[%clk 0:01:57]}  Ba4 {[%clk 0:00:52]} 30. Rd4 {[%clk 0:01:48]}  Kxg7 {[%clk 0:00:49]} 31. Rxe4 {[%clk 0:01:48]}  Re8 {[%clk 0:00:47]} 32. Rxe8 {[%clk 0:01:44]}  Bxe8 {[%clk 0:00:48]} 33. e4 {[%clk 0:01:44]}  Bf7 {[%clk 0:00:45]} 34. a3 {[%clk 0:01:43]}  Kf6 {[%clk 0:00:45]} 35. f4 {[%clk 0:01:43]}  Ke6 {[%clk 0:00:42]} 36. Kf2 {[%clk 0:01:42]}  Kd6 {[%clk 0:00:43]} 37. Ke3 {[%clk 0:01:42]}  Kc6 {[%clk 0:00:43]} 38. Kd4 {[%clk 0:01:39]}  Kb5 {[%clk 0:00:44]} 39. g4 {[%clk 0:01:33]}  Ka4 {[%clk 0:00:42]} 40. f5 {[%clk 0:01:32]}  Kxa3 {[%clk 0:00:41]} 41. e5 {[%clk 0:01:32]}  gxf5 {[%clk 0:00:41]} 42. gxf5 {[%clk 0:01:31]}  a5 {[%clk 0:00:40]} 43. e6 {[%clk 0:01:29]}  Bg8 {[%clk 0:00:39]} 44. bxa5 {[%clk 0:01:28]}  bxa5 {[%clk 0:00:39]} 45. Ke5 {[%clk 0:01:28]}  a4 {[%clk 0:00:37]} 46. f6 {[%clk 0:01:28]}  Kb3 {[%clk 0:00:34]} 47. f7 {[%clk 0:01:28]} 1-0


[Site "https://www.chess.com"]

[Event "Titled Tuesday Blitz November 29 Early 2022"]
[White "Hristodoulou, Panagiotis"]
[Black "Poltorak, Sebastian"]
[WhiteFideId "4214340"]
[BlackFideId "1199498"]
[WhiteElo "2272"]
[BlackElo "2196"]
[Result "0-1"]
[Round "06"]
[TimeControl "180+1"]
[Date "2022.11.30"]
[WhiteClock "0:01:34"]
[BlackClock "0:02:33"]

1. e4 {[%clk 0:02:51]}  c6 {[%clk 0:03:00]} 2. d4 {[%clk 0:02:50]}  d5 {[%clk 0:03:00]} 3. exd5 {[%clk 0:02:44]}  cxd5 {[%clk 0:03:00]} 4. Bd3 {[%clk 0:02:44]}  Nc6 {[%clk 0:03:00]} 5. c3 {[%clk 0:02:44]}  Nf6 {[%clk 0:03:01]} 6. Bf4 {[%clk 0:02:36]}  Bg4 {[%clk 0:02:59]} 7. Ne2 {[%clk 0:02:34]}  e6 {[%clk 0:02:59]} 8. Nd2 {[%clk 0:02:32]}  Bd6 {[%clk 0:02:58]} 9. Bxd6 {[%clk 0:02:32]}  Qxd6 {[%clk 0:02:59]} 10. O-O {[%clk 0:02:32]}  O-O {[%clk 0:02:59]} 11. Qe1 {[%clk 0:02:27]}  Rab8 {[%clk 0:02:55]} 12. h3 {[%clk 0:02:22]}  Bh5 {[%clk 0:02:55]} 13. f4 {[%clk 0:02:13]}  Bg6 {[%clk 0:02:47]} 14. Bxg6 {[%clk 0:02:09]}  hxg6 {[%clk 0:02:48]} 15. Nc1 {[%clk 0:02:09]}  b5 {[%clk 0:02:45]} 16. a3 {[%clk 0:02:09]}  Na5 {[%clk 0:02:43]} 17. Nd3 {[%clk 0:02:04]}  Nc4 {[%clk 0:02:41]} 18. Ne5 {[%clk 0:01:34]}  Nxb2 {[%clk 0:02:33]} 0-1


[Site "https://www.chess.com"]

[Event "Titled Tuesday Blitz November 29 Early 2022"]
[White "Ibarra Jerez, Jose Carlos"]
[Black "Trost, Edvin"]
[WhiteFideId "2226332"]
[BlackFideId "1729519"]
[WhiteElo "2925"]
[BlackElo "2664"]
[Result "1-0"]
[Round "06"]
[TimeControl "180+1"]
[Date "2022.11.30"]
[WhiteClock "0:01:01"]
[BlackClock "0:00:16"]

1. Nf3 {[%clk 0:03:00]}  Nf6 {[%clk 0:02:59]} 2. g3 {[%clk 0:03:01]}  b6 {[%clk 0:02:46]} 3. Bg2 {[%clk 0:03:00]}  Bb7 {[%clk 0:02:47]} 4. c4 {[%clk 0:03:01]}  e6 {[%clk 0:02:45]} 5. O-O {[%clk 0:03:01]}  Be7 {[%clk 0:02:45]} 6. b3 {[%clk 0:03:01]}  O-O {[%clk 0:02:46]} 7. Bb2 {[%clk 0:03:02]}  d6 {[%clk 0:02:44]} 8. Nc3 {[%clk 0:02:59]}  Ne4 {[%clk 0:02:39]} 9. Na4 {[%clk 0:02:49]}  Nf6 {[%clk 0:02:32]} 10. d3 {[%clk 0:02:47]}  Nbd7 {[%clk 0:02:32]} 11. e4 {[%clk 0:02:48]}  c5 {[%clk 0:02:30]} 12. Nc3 {[%clk 0:02:47]}  a6 {[%clk 0:02:30]} 13. Re1 {[%clk 0:02:47]}  Ne5 {[%clk 0:02:26]} 14. d4 {[%clk 0:02:43]}  cxd4 {[%clk 0:02:21]} 15. Nxd4 {[%clk 0:02:41]}  Qc7 {[%clk 0:02:20]} 16. Rc1 {[%clk 0:02:40]}  Rac8 {[%clk 0:02:15]} 17. f4 {[%clk 0:02:40]}  Ned7 {[%clk 0:02:12]} 18. f5 {[%clk 0:02:38]}  e5 {[%clk 0:02:10]} 19. Nd5 {[%clk 0:02:30]}  Qd8 {[%clk 0:01:56]} 20. Nxe7+ {[%clk 0:02:22]}  Qxe7 {[%clk 0:01:57]} 21. Nc2 {[%clk 0:02:22]}  Nc5 {[%clk 0:01:55]} 22. Ba3 {[%clk 0:02:13]}  Ncxe4 {[%clk 0:01:51]} 23. Ne3 {[%clk 0:02:05]}  Rfd8 {[%clk 0:01:45]} 24. g4 {[%clk 0:01:53]}  h6 {[%clk 0:01:44]} 25. Qe2 {[%clk 0:01:50]}  Nc5 {[%clk 0:01:43]} 26. h4 {[%clk 0:01:47]}  Bxg2 {[%clk 0:01:35]} 27. Qxg2 {[%clk 0:01:44]}  Nh7 {[%clk 0:01:30]} 28. Qh3 {[%clk 0:01:40]}  f6 {[%clk 0:01:07]} 29. Nd5 {[%clk 0:01:36]}  Qb7 {[%clk 0:01:08]} 30. Qg2 {[%clk 0:01:29]}  Qf7 {[%clk 0:01:02]} 31. Bxc5 {[%clk 0:01:21]}  bxc5 {[%clk 0:01:00]} 32. Rc3 {[%clk 0:01:19]}  Re8 {[%clk 0:00:58]} 33. Re4 {[%clk 0:01:18]}  Qa7 {[%clk 0:00:55]} 34. Rh3 {[%clk 0:01:16]}  a5 {[%clk 0:00:52]} 35. a4 {[%clk 0:01:16]}  Kf7 {[%clk 0:00:47]} 36. Qe2 {[%clk 0:01:13]}  Rh8 {[%clk 0:00:44]} 37. Rg3 {[%clk 0:01:13]}  Ke8 {[%clk 0:00:42]} 38. Nc3 {[%clk 0:01:13]}  Rd8 {[%clk 0:00:38]} 39. Rd3 {[%clk 0:01:13]}  Qb6 {[%clk 0:00:38]} 40. Nb5 {[%clk 0:01:13]}  Ke7 {[%clk 0:00:37]} 41. Qd2 {[%clk 0:01:14]}  Rd7 {[%clk 0:00:37]} 42. Nc3 {[%clk 0:01:14]}  Qa7 {[%clk 0:00:36]} 43. Nd5+ {[%clk 0:01:14]}  Kf7 {[%clk 0:00:37]} 44. Qe2 {[%clk 0:01:13]}  Rb8 {[%clk 0:00:36]} 45. g5 {[%clk 0:01:11]}  fxg5 {[%clk 0:00:31]} 46. Qh5+ {[%clk 0:01:11]}  Kg8 {[%clk 0:00:32]} 47. hxg5 {[%clk 0:01:06]}  Nxg5 {[%clk 0:00:31]} 48. Rg4 {[%clk 0:01:06]}  Rf8 {[%clk 0:00:29]} 49. Rxg5 {[%clk 0:01:01]}  hxg5 {[%clk 0:00:23]} 50. Rh3 {[%clk 0:01:02]}  Rxf5 {[%clk 0:00:17]} 51. Qh7+ {[%clk 0:01:01]}  Kf7 {[%clk 0:00:15]} 52. Qxf5+ {[%clk 0:01:02]}  Kg8 {[%clk 0:00:16]} 53. Qe6+ {[%clk 0:01:01]} 1-0


[Site "https://www.chess.com"]

[Event "Titled Tuesday Blitz November 29 Early 2022"]
[White "Iinuma, Paul Y"]
[Black "Shapiro, Daniel"]
[WhiteFideId "2031809"]
[BlackFideId "2001780"]
[WhiteElo "2066"]
[BlackElo "2321"]
[Result "1-0"]
[Round "06"]
[TimeControl "180+1"]
[Date "2022.11.30"]
[WhiteClock "0:01:43"]
[BlackClock "0:00:10"]

1. Nf3 {[%clk 0:02:59]}  Nf6 {[%clk 0:02:59]} 2. g3 {[%clk 0:03:00]}  d5 {[%clk 0:02:58]} 3. Bg2 {[%clk 0:03:01]}  e6 {[%clk 0:02:59]} 4. O-O {[%clk 0:03:02]}  Be7 {[%clk 0:02:59]} 5. d3 {[%clk 0:03:02]}  b6 {[%clk 0:02:59]} 6. Nbd2 {[%clk 0:03:03]}  Bb7 {[%clk 0:02:57]} 7. Re1 {[%clk 0:03:03]}  c5 {[%clk 0:02:54]} 8. e4 {[%clk 0:03:03]}  Nc6 {[%clk 0:02:50]} 9. e5 {[%clk 0:02:56]}  Nd7 {[%clk 0:02:49]} 10. Nf1 {[%clk 0:02:54]}  Qc7 {[%clk 0:02:47]} 11. Bf4 {[%clk 0:02:54]}  h6 {[%clk 0:02:45]} 12. h4 {[%clk 0:02:54]}  O-O-O {[%clk 0:02:36]} 13. c3 {[%clk 0:02:55]}  Rdg8 {[%clk 0:02:34]} 14. d4 {[%clk 0:02:55]}  g5 {[%clk 0:02:33]} 15. hxg5 {[%clk 0:02:55]}  hxg5 {[%clk 0:02:34]} 16. Be3 {[%clk 0:02:54]}  f5 {[%clk 0:02:21]} 17. exf6 {[%clk 0:02:54]}  Bxf6 {[%clk 0:02:17]} 18. Qd2 {[%clk 0:02:52]}  g4 {[%clk 0:02:13]} 19. Bf4 {[%clk 0:02:52]}  e5 {[%clk 0:01:50]} 20. Nxe5 {[%clk 0:02:46]}  Ncxe5 {[%clk 0:01:47]} 21. dxe5 {[%clk 0:02:46]}  Bxe5 {[%clk 0:01:43]} 22. Bxd5 {[%clk 0:02:43]}  Bxd5 {[%clk 0:01:34]} 23. Qxd5 {[%clk 0:02:43]}  Bxf4 {[%clk 0:01:32]} 24. gxf4 {[%clk 0:02:42]}  Qxf4 {[%clk 0:01:30]} 25. Re3 {[%clk 0:02:29]}  Qh6 {[%clk 0:01:19]} 26. Rd1 {[%clk 0:02:17]}  Rg7 {[%clk 0:01:15]} 27. Ng3 {[%clk 0:02:07]}  Qh2+ {[%clk 0:01:04]} 28. Kf1 {[%clk 0:02:07]}  Rf8 {[%clk 0:01:05]} 29. Nf5 {[%clk 0:02:04]}  Rh7 {[%clk 0:00:33]} 30. Nd6+ {[%clk 0:01:45]}  Kd8 {[%clk 0:00:10]} 31. Qa8+ {[%clk 0:01:43]} 1-0


[Site "https://www.chess.com"]

[Event "Titled Tuesday Blitz November 29 Early 2022"]
[White "Ingebretsen, Jens E"]
[Black "Rosenberg, Evan S"]
[WhiteFideId "1522965"]
[BlackFideId "2019299"]
[WhiteElo "2213"]
[BlackElo "2412"]
[Result "1-0"]
[Round "06"]
[TimeControl "180+1"]
[Date "2022.11.30"]
[WhiteClock "0:00:21"]
[BlackClock "0:00:08"]

1. d4 {[%clk 0:02:50]}  d5 {[%clk 0:02:59]} 2. Nf3 {[%clk 0:02:51]}  Bf5 {[%clk 0:02:58]} 3. c4 {[%clk 0:02:50]}  e6 {[%clk 0:02:58]} 4. Qb3 {[%clk 0:02:47]}  Nc6 {[%clk 0:02:56]} 5. cxd5 {[%clk 0:02:42]}  Nb4 {[%clk 0:02:53]} 6. Na3 {[%clk 0:02:20]}  exd5 {[%clk 0:02:45]} 7. Bg5 {[%clk 0:02:14]}  Nf6 {[%clk 0:02:35]} 8. e3 {[%clk 0:02:09]}  c6 {[%clk 0:02:34]} 9. Be2 {[%clk 0:02:07]}  Bd6 {[%clk 0:02:25]} 10. O-O {[%clk 0:02:05]}  O-O {[%clk 0:02:25]} 11. Nh4 {[%clk 0:01:54]}  Be4 {[%clk 0:02:05]} 12. f3 {[%clk 0:01:48]}  Bg6 {[%clk 0:02:03]} 13. Nxg6 {[%clk 0:01:46]}  hxg6 {[%clk 0:02:03]} 14. Nb1 {[%clk 0:01:42]}  Qc7 {[%clk 0:01:43]} 15. Kh1 {[%clk 0:01:28]}  a5 {[%clk 0:01:40]} 16. Nc3 {[%clk 0:01:20]}  Bxh2 {[%clk 0:01:28]} 17. f4 {[%clk 0:01:12]}  Bg3 {[%clk 0:01:26]} 18. Bxf6 {[%clk 0:01:09]}  gxf6 {[%clk 0:01:25]} 19. Rf3 {[%clk 0:01:10]}  Bh4 {[%clk 0:01:04]} 20. g3 {[%clk 0:01:09]}  Bxg3 {[%clk 0:00:44]} 21. Rxg3 {[%clk 0:01:10]}  Kg7 {[%clk 0:00:44]} 22. a3 {[%clk 0:01:05]}  Rh8+ {[%clk 0:00:33]} 23. Kg2 {[%clk 0:01:05]}  Na6 {[%clk 0:00:31]} 24. Bd3 {[%clk 0:00:57]}  Qe7 {[%clk 0:00:24]} 25. Qc2 {[%clk 0:00:55]}  Rh6 {[%clk 0:00:20]} 26. Rh1 {[%clk 0:00:53]}  Rah8 {[%clk 0:00:20]} 27. Rxh6 {[%clk 0:00:51]}  Rxh6 {[%clk 0:00:21]} 28. Bxa6 {[%clk 0:00:35]}  bxa6 {[%clk 0:00:21]} 29. Nd1 {[%clk 0:00:36]}  a4 {[%clk 0:00:14]} 30. Nf2 {[%clk 0:00:35]}  Rh8 {[%clk 0:00:12]} 31. Qxc6 {[%clk 0:00:33]}  Rb8 {[%clk 0:00:10]} 32. Qxd5 {[%clk 0:00:28]}  Rxb2 {[%clk 0:00:09]} 33. Qf3 {[%clk 0:00:16]}  Qxa3 {[%clk 0:00:08]} 34. f5 {[%clk 0:00:15]}  g5 {[%clk 0:00:08]} 35. e4 {[%clk 0:00:12]}  Qxf3+ {[%clk 0:00:06]} 36. Rxf3 {[%clk 0:00:10]}  Rb3 {[%clk 0:00:06]} 37. Nd1 {[%clk 0:00:05]}  Rxf3 {[%clk 0:00:04]} 38. Kxf3 {[%clk 0:00:06]}  a3 {[%clk 0:00:04]} 39. Nc3 {[%clk 0:00:07]}  Kf8 {[%clk 0:00:03]} 40. Na2 {[%clk 0:00:07]}  Ke7 {[%clk 0:00:04]} 41. Kg4 {[%clk 0:00:08]}  Kd6 {[%clk 0:00:04]} 42. Nb4 {[%clk 0:00:08]}  a5 {[%clk 0:00:04]} 43. Na2 {[%clk 0:00:08]}  Kc6 {[%clk 0:00:05]} 44. e5 {[%clk 0:00:09]}  fxe5 {[%clk 0:00:04]} 45. dxe5 {[%clk 0:00:09]}  Kd5 {[%clk 0:00:05]} 46. e6 {[%clk 0:00:09]}  fxe6 {[%clk 0:00:05]} 47. f6 {[%clk 0:00:10]}  Kd6 {[%clk 0:00:05]} 48. Kxg5 {[%clk 0:00:11]}  Kd7 {[%clk 0:00:03]} 49. Kg6 {[%clk 0:00:11]}  Ke8 {[%clk 0:00:04]} 50. Kg7 {[%clk 0:00:12]}  e5 {[%clk 0:00:03]} 51. f7+ {[%clk 0:00:13]}  Ke7 {[%clk 0:00:04]} 52. f8=Q+ {[%clk 0:00:14]}  Ke6 {[%clk 0:00:04]} 53. Qxa3 {[%clk 0:00:15]}  e4 {[%clk 0:00:04]} 54. Qxa5 {[%clk 0:00:16]}  e3 {[%clk 0:00:05]} 55. Qe1 {[%clk 0:00:16]}  Kf5 {[%clk 0:00:05]} 56. Nc1 {[%clk 0:00:17]}  Kf4 {[%clk 0:00:04]} 57. Ne2+ {[%clk 0:00:18]}  Kf3 {[%clk 0:00:04]} 58. Nd4+ {[%clk 0:00:18]}  Ke4 {[%clk 0:00:05]} 59. Nf5 {[%clk 0:00:18]}  Kf4 {[%clk 0:00:05]} 60. Qxe3+ {[%clk 0:00:18]}  Kxf5 {[%clk 0:00:05]} 61. Qc5+ {[%clk 0:00:17]}  Kg4 {[%clk 0:00:06]} 62. Kg6 {[%clk 0:00:17]}  Kf4 {[%clk 0:00:06]} 63. Qd5 {[%clk 0:00:17]}  Kg4 {[%clk 0:00:07]} 64. Qd4+ {[%clk 0:00:18]}  Kh3 {[%clk 0:00:07]} 65. Kg5 {[%clk 0:00:18]}  Kg3 {[%clk 0:00:07]} 66. Qd3+ {[%clk 0:00:19]}  Kh2 {[%clk 0:00:07]} 67. Kg4 {[%clk 0:00:19]}  Kg2 {[%clk 0:00:07]} 68. Qd2+ {[%clk 0:00:20]}  Kh1 {[%clk 0:00:07]} 69. Kg3 {[%clk 0:00:20]}  Kg1 {[%clk 0:00:08]} 70. Qc1# {[%clk 0:00:21]} 1-0


[Site "https://www.chess.com"]